[Event "Titled Tuesday Blitz August 3 2021"]
[White "Sanal, Vahap"]
[Black "Batsuren, Dambasuren"]
[WhiteFideId "6300545"]
[BlackFideId "4902920"]
[WhiteElo "2495"]
[BlackElo "2371"]
[Result "1-0"]
[Round "03"]
[TimeControl "180+1"]
[Date "2021.08.03"]
[WhiteClock "0:00:53"]
[BlackClock "0:00:02"]

1. e4 {[%clk 0:03:00]}  e5 {[%clk 0:03:00]} 2. Nf3 {[%clk 0:02:59]}  Nc6 {[%clk 0:03:00]} 3. Nc3 {[%clk 0:02:57]}  Nf6 {[%clk 0:03:00]} 4. d4 {[%clk 0:02:57]}  exd4 {[%clk 0:03:01]} 5. Nxd4 {[%clk 0:02:58]}  Bb4 {[%clk 0:03:01]} 6. Nxc6 {[%clk 0:02:58]}  bxc6 {[%clk 0:03:02]} 7. Bd3 {[%clk 0:02:58]}  d5 {[%clk 0:03:03]} 8. exd5 {[%clk 0:02:57]}  cxd5 {[%clk 0:03:04]} 9. O-O {[%clk 0:02:57]}  O-O {[%clk 0:03:05]} 10. h3 {[%clk 0:02:57]}  c6 {[%clk 0:03:04]} 11. Qf3 {[%clk 0:02:57]}  Bd6 {[%clk 0:03:00]} 12. Bg5 {[%clk 0:02:54]}  Rb8 {[%clk 0:03:00]} 13. Rab1 {[%clk 0:02:51]}  h6 {[%clk 0:02:59]} 14. Bf4 {[%clk 0:02:48]}  Rb4 {[%clk 0:02:56]} 15. Ne2 {[%clk 0:02:47]}  Re8 {[%clk 0:02:55]} 16. c3 {[%clk 0:02:41]}  Rb6 {[%clk 0:02:31]} 17. Rfe1 {[%clk 0:02:38]}  c5 {[%clk 0:02:28]} 18. Ng3 {[%clk 0:02:31]}  Bxf4 {[%clk 0:02:26]} 19. Rxe8+ {[%clk 0:02:24]}  Qxe8 {[%clk 0:02:27]} 20. Qxf4 {[%clk 0:02:24]}  Be6 {[%clk 0:02:16]} 21. Qd2 {[%clk 0:02:22]}  Qa4 {[%clk 0:02:08]} 22. b3 {[%clk 0:02:20]}  Qa3 {[%clk 0:02:08]} 23. Re1 {[%clk 0:02:19]}  c4 {[%clk 0:02:06]} 24. bxc4 {[%clk 0:02:15]}  Rb2 {[%clk 0:01:57]} 25. Qe3 {[%clk 0:02:09]}  dxc4 {[%clk 0:01:54]} 26. Bf5 {[%clk 0:02:09]}  Nd5 {[%clk 0:01:48]} 27. Qe4 {[%clk 0:01:52]}  Rb6 {[%clk 0:01:07]} 28. Rd1 {[%clk 0:01:43]}  Qc5 {[%clk 0:00:45]} 29. Bxe6 {[%clk 0:01:43]}  fxe6 {[%clk 0:00:44]} 30. Qe5 {[%clk 0:01:39]}  Qa3 {[%clk 0:00:27]} 31. Nh5 {[%clk 0:01:30]}  Qf8 {[%clk 0:00:20]} 32. Rd4 {[%clk 0:01:28]}  Rb1+ {[%clk 0:00:09]} 33. Kh2 {[%clk 0:01:29]}  Qb8 {[%clk 0:00:09]} 34. Qxb8+ {[%clk 0:01:29]}  Rxb8 {[%clk 0:00:10]} 35. Rxc4 {[%clk 0:01:26]}  Rb2 {[%clk 0:00:11]} 36. Rc8+ {[%clk 0:01:19]}  Kf7 {[%clk 0:00:11]} 37. c4 {[%clk 0:01:20]}  Ne7 {[%clk 0:00:05]} 38. Rc7 {[%clk 0:01:19]}  Rxa2 {[%clk 0:00:02]} 39. Kg3 {[%clk 0:01:08]}  g6 {[%clk 0:00:03]} 40. Nf4 {[%clk 0:01:08]}  Kf6 {[%clk 0:00:04]} 41. Kf3 {[%clk 0:01:06]}  Nf5 {[%clk 0:00:04]} 42. g4 {[%clk 0:01:06]}  Nd4+ {[%clk 0:00:02]} 43. Ke4 {[%clk 0:01:05]}  e5 {[%clk 0:00:02]} 44. Nd5+ {[%clk 0:01:05]}  Kg5 {[%clk 0:00:03]} 45. Kxe5 {[%clk 0:01:04]}  Nf3+ {[%clk 0:00:03]} 46. Ke4 {[%clk 0:01:04]}  Rxf2 {[%clk 0:00:02]} 47. Ke3 {[%clk 0:01:05]}  Rf1 {[%clk 0:00:02]} 48. Ke2 {[%clk 0:01:01]}  Nh2 {[%clk 0:00:02]} 49. c5 {[%clk 0:00:57]}  Rc1 {[%clk 0:00:03]} 50. c6 {[%clk 0:00:57]}  Rc5 {[%clk 0:00:02]} 51. Nb4 {[%clk 0:00:54]}  Kf6 {[%clk 0:00:02]} 52. Rxa7 {[%clk 0:00:54]}  Ke6 {[%clk 0:00:01]} 53. c7 {[%clk 0:00:53]}  Kd7 {[%clk 0:00:02]} 54. Na6 {[%clk 0:00:54]}  Rc6 {[%clk 0:00:02]} 55. Nb8+ {[%clk 0:00:53]} 1-0


[Site "https://www.chess.com"]

[Event "Titled Tuesday Blitz August 3 2021"]
[White "Sarana, Alexey"]
[Black "MikeKorovin"]
[WhiteFideId "24133795"]
[WhiteElo "2646"]
[BlackElo "2720"]
[Result "1/2-1/2"]
[Round "03"]
[TimeControl "180+1"]
[Date "2021.08.03"]
[WhiteClock "0:00:12"]
[BlackClock "0:00:11"]

1. e4 {[%clk 0:02:55]}  e6 {[%clk 0:03:00]} 2. d4 {[%clk 0:02:54]}  d5 {[%clk 0:03:00]} 3. Nc3 {[%clk 0:02:55]}  Bb4 {[%clk 0:02:59]} 4. e5 {[%clk 0:02:55]}  Ne7 {[%clk 0:02:59]} 5. Qg4 {[%clk 0:02:51]}  c5 {[%clk 0:02:58]} 6. a3 {[%clk 0:02:49]}  Bxc3+ {[%clk 0:02:56]} 7. bxc3 {[%clk 0:02:50]}  cxd4 {[%clk 0:02:50]} 8. Qxg7 {[%clk 0:02:49]}  Rg8 {[%clk 0:02:47]} 9. Qxh7 {[%clk 0:02:50]}  Qc7 {[%clk 0:02:48]} 10. Ne2 {[%clk 0:02:50]}  Nbc6 {[%clk 0:02:49]} 11. f4 {[%clk 0:02:49]}  Bd7 {[%clk 0:02:47]} 12. Qd3 {[%clk 0:02:40]}  dxc3 {[%clk 0:02:47]} 13. Nxc3 {[%clk 0:02:39]}  a6 {[%clk 0:02:47]} 14. Be3 {[%clk 0:02:38]}  Rc8 {[%clk 0:02:42]} 15. Ne2 {[%clk 0:02:29]}  Nf5 {[%clk 0:02:37]} 16. Bf2 {[%clk 0:02:29]}  Qa5+ {[%clk 0:02:31]} 17. Qd2 {[%clk 0:02:28]}  Qa4 {[%clk 0:02:24]} 18. Nc3 {[%clk 0:01:58]}  Qa5 {[%clk 0:02:12]} 19. Bd3 {[%clk 0:01:31]}  Nce7 {[%clk 0:01:31]} 20. Ne4 {[%clk 0:01:18]}  Qxd2+ {[%clk 0:01:27]} 21. Nxd2 {[%clk 0:01:19]}  Rxg2 {[%clk 0:01:27]} 22. h4 {[%clk 0:01:10]}  Bb5 {[%clk 0:01:20]} 23. h5 {[%clk 0:01:05]}  Bxd3 {[%clk 0:01:14]} 24. cxd3 {[%clk 0:01:06]}  Rc2 {[%clk 0:01:03]} 25. Rd1 {[%clk 0:00:50]}  Ng8 {[%clk 0:00:55]} 26. Rg1 {[%clk 0:00:41]}  Rxg1+ {[%clk 0:00:50]} 27. Bxg1 {[%clk 0:00:42]}  Ng3 {[%clk 0:00:49]} 28. Rb1 {[%clk 0:00:32]}  b5 {[%clk 0:00:47]} 29. a4 {[%clk 0:00:32]}  Nxh5 {[%clk 0:00:47]} 30. axb5 {[%clk 0:00:32]}  axb5 {[%clk 0:00:48]} 31. Rxb5 {[%clk 0:00:29]}  Rc1+ {[%clk 0:00:44]} 32. Kf2 {[%clk 0:00:29]}  Nxf4 {[%clk 0:00:42]} 33. Rb8+ {[%clk 0:00:29]}  Kd7 {[%clk 0:00:41]} 34. Bh2 {[%clk 0:00:23]}  Nxd3+ {[%clk 0:00:22]} 35. Ke2 {[%clk 0:00:22]}  Rc8 {[%clk 0:00:05]} 36. Rb7+ {[%clk 0:00:14]}  Rc7 {[%clk 0:00:05]} 37. Rb8 {[%clk 0:00:14]}  Nc1+ {[%clk 0:00:04]} 38. Kd1 {[%clk 0:00:14]}  Ne7 {[%clk 0:00:05]} 39. Bg1 {[%clk 0:00:13]}  Nf5 {[%clk 0:00:05]} 40. Bb6 {[%clk 0:00:11]}  Rc6 {[%clk 0:00:03]} 41. Ba5 {[%clk 0:00:09]}  Nd3 {[%clk 0:00:03]} 42. Rb7+ {[%clk 0:00:09]}  Kc8 {[%clk 0:00:02]} 43. Rxf7 {[%clk 0:00:10]}  Nxe5 {[%clk 0:00:03]} 44. Rh7 {[%clk 0:00:10]}  Nc4 {[%clk 0:00:02]} 45. Nb3 {[%clk 0:00:10]}  Nxa5 {[%clk 0:00:02]} 46. Nxa5 {[%clk 0:00:11]}  Rb6 {[%clk 0:00:03]} 47. Kc2 {[%clk 0:00:09]}  Nd6 {[%clk 0:00:03]} 48. Kc3 {[%clk 0:00:09]}  Nb7 {[%clk 0:00:03]} 49. Rh8+ {[%clk 0:00:08]}  Kc7 {[%clk 0:00:03]} 50. Rh7+ {[%clk 0:00:09]}  Kb8 {[%clk 0:00:03]} 51. Rh8+ {[%clk 0:00:09]}  Ka7 {[%clk 0:00:03]} 52. Nb3 {[%clk 0:00:09]}  e5 {[%clk 0:00:04]} 53. Rh5 {[%clk 0:00:07]}  Re6 {[%clk 0:00:03]} 54. Kb4 {[%clk 0:00:06]}  Kb6 {[%clk 0:00:03]} 55. Rh7 {[%clk 0:00:06]}  Kc6 {[%clk 0:00:03]} 56. Rxb7 {[%clk 0:00:05]}  Kxb7 {[%clk 0:00:03]} 57. Nc5+ {[%clk 0:00:05]}  Kc6 {[%clk 0:00:04]} 58. Nxe6 {[%clk 0:00:06]}  Kd6 {[%clk 0:00:04]} 59. Ng5 {[%clk 0:00:07]}  e4 {[%clk 0:00:04]} 60. Kc3 {[%clk 0:00:08]}  Ke5 {[%clk 0:00:05]} 61. Kd2 {[%clk 0:00:08]}  Kf4 {[%clk 0:00:06]} 62. Ne6+ {[%clk 0:00:08]}  Ke5 {[%clk 0:00:06]} 63. Nc5 {[%clk 0:00:09]}  d4 {[%clk 0:00:07]} 64. Nb3 {[%clk 0:00:09]}  Kd5 {[%clk 0:00:07]} 65. Ke2 {[%clk 0:00:09]}  Kc4 {[%clk 0:00:07]} 66. Nd2+ {[%clk 0:00:10]}  Kd5 {[%clk 0:00:08]} 67. Nf1 {[%clk 0:00:10]}  e3 {[%clk 0:00:08]} 68. Nxe3+ {[%clk 0:00:10]}  Ke4 {[%clk 0:00:09]} 69. Nc2 {[%clk 0:00:10]}  d3+ {[%clk 0:00:10]} 70. Kd2 {[%clk 0:00:11]}  dxc2 {[%clk 0:00:11]} 71. Kxc2 {[%clk 0:00:12]} 1/2-1/2


[Site "https://www.chess.com"]

[Event "Titled Tuesday Blitz August 3 2021"]
[White "Seo, Jung Min"]
[Black "Chen, Max"]
[WhiteFideId "1734687"]
[BlackFideId "2622440"]
[WhiteElo "2486"]
[BlackElo "2424"]
[Result "0-1"]
[Round "03"]
[TimeControl "180+1"]
[Date "2021.08.03"]
[WhiteClock "0:00:04"]
[BlackClock "0:00:05"]

1. d4 {[%clk 0:03:00]}  f5 {[%clk 0:02:43]} 2. g3 {[%clk 0:02:58]}  Nf6 {[%clk 0:02:39]} 3. Bg2 {[%clk 0:02:59]}  e6 {[%clk 0:02:40]} 4. c3 {[%clk 0:02:58]}  Be7 {[%clk 0:02:40]} 5. Nd2 {[%clk 0:02:58]}  O-O {[%clk 0:02:41]} 6. Ngf3 {[%clk 0:02:57]}  d5 {[%clk 0:02:38]} 7. O-O {[%clk 0:02:57]}  c5 {[%clk 0:02:32]} 8. Ne5 {[%clk 0:02:55]}  Nc6 {[%clk 0:02:30]} 9. Ndf3 {[%clk 0:02:54]}  Qb6 {[%clk 0:02:07]} 10. b3 {[%clk 0:02:25]}  a5 {[%clk 0:01:50]} 11. Be3 {[%clk 0:02:20]}  a4 {[%clk 0:01:39]} 12. c4 {[%clk 0:02:11]}  cxd4 {[%clk 0:01:27]} 13. Nxc6 {[%clk 0:02:10]}  bxc6 {[%clk 0:01:21]} 14. Bxd4 {[%clk 0:02:03]}  Bc5 {[%clk 0:01:16]} 15. cxd5 {[%clk 0:01:56]}  cxd5 {[%clk 0:01:14]} 16. bxa4 {[%clk 0:01:52]}  Bd7 {[%clk 0:01:09]} 17. Rb1 {[%clk 0:01:47]}  Qd6 {[%clk 0:01:04]} 18. Be5 {[%clk 0:01:42]}  Qa6 {[%clk 0:00:57]} 19. Qc2 {[%clk 0:01:40]}  Rac8 {[%clk 0:00:51]} 20. Qb2 {[%clk 0:01:39]}  Bxa4 {[%clk 0:00:49]} 21. Rbc1 {[%clk 0:01:36]}  Bb5 {[%clk 0:00:47]} 22. Nd4 {[%clk 0:01:22]}  Ba3 {[%clk 0:00:37]} 23. Qd2 {[%clk 0:00:55]}  Bxc1 {[%clk 0:00:29]} 24. Rxc1 {[%clk 0:00:55]}  Rxc1+ {[%clk 0:00:28]} 25. Qxc1 {[%clk 0:00:55]}  Bc4 {[%clk 0:00:20]} 26. h3 {[%clk 0:00:51]}  Nd7 {[%clk 0:00:19]} 27. Qe3 {[%clk 0:00:46]}  Re8 {[%clk 0:00:16]} 28. a3 {[%clk 0:00:32]}  Nxe5 {[%clk 0:00:11]} 29. Qxe5 {[%clk 0:00:32]}  Qxa3 {[%clk 0:00:11]} 30. Nxf5 {[%clk 0:00:28]}  Qc1+ {[%clk 0:00:03]} 31. Kh2 {[%clk 0:00:27]}  Qg5 {[%clk 0:00:04]} 32. g4 {[%clk 0:00:22]}  Bb5 {[%clk 0:00:03]} 33. f4 {[%clk 0:00:11]}  Qf6 {[%clk 0:00:03]} 34. Qxf6 {[%clk 0:00:08]}  gxf6 {[%clk 0:00:03]} 35. Nd6 {[%clk 0:00:09]}  Rb8 {[%clk 0:00:04]} 36. f5 {[%clk 0:00:09]}  Bd7 {[%clk 0:00:03]} 37. fxe6 {[%clk 0:00:08]}  Bxe6 {[%clk 0:00:03]} 38. e4 {[%clk 0:00:09]}  d4 {[%clk 0:00:03]} 39. Bf1 {[%clk 0:00:06]}  Kf8 {[%clk 0:00:04]} 40. Kg3 {[%clk 0:00:05]}  Ke7 {[%clk 0:00:04]} 41. Nb5 {[%clk 0:00:05]}  Rd8 {[%clk 0:00:02]} 42. Kf2 {[%clk 0:00:03]}  d3 {[%clk 0:00:03]} 43. Nc3 {[%clk 0:00:03]}  Bc4 {[%clk 0:00:03]} 44. Ke3 {[%clk 0:00:01]}  Ke6 {[%clk 0:00:03]} 45. h4 {[%clk 0:00:01]}  Ke5 {[%clk 0:00:04]} 46. g5 {[%clk 0:00:01]}  fxg5 {[%clk 0:00:03]} 47. hxg5 {[%clk 0:00:02]}  Rg8 {[%clk 0:00:04]} 48. Nd1 {[%clk 0:00:02]}  Rxg5 {[%clk 0:00:03]} 49. Nf2 {[%clk 0:00:03]}  Rg3+ {[%clk 0:00:04]} 50. Kd2 {[%clk 0:00:03]}  Rf3 {[%clk 0:00:04]} 51. Nxd3+ {[%clk 0:00:03]}  Bxd3 {[%clk 0:00:03]} 52. Bxd3 {[%clk 0:00:03]}  h5 {[%clk 0:00:03]} 53. Ke2 {[%clk 0:00:04]}  Rg3 {[%clk 0:00:03]} 54. Bc2 {[%clk 0:00:04]}  Kd4 {[%clk 0:00:03]} 55. Kf2 {[%clk 0:00:04]}  Rc3 {[%clk 0:00:04]} 56. Bd1 {[%clk 0:00:04]}  h4 {[%clk 0:00:03]} 57. Bf3 {[%clk 0:00:04]}  Ke5 {[%clk 0:00:04]} 58. Kg2 {[%clk 0:00:04]}  Kf4 {[%clk 0:00:04]} 59. Bd1 {[%clk 0:00:04]}  Kxe4 {[%clk 0:00:04]} 60. Kh2 {[%clk 0:00:04]}  Kf4 {[%clk 0:00:05]} 61. Bh5 {[%clk 0:00:04]}  Rg3 {[%clk 0:00:05]} 62. Be8 {[%clk 0:00:04]}  Re3 {[%clk 0:00:05]} 63. Bc6 {[%clk 0:00:04]}  Kg5 {[%clk 0:00:05]} 64. Bd5 {[%clk 0:00:04]}  Kg4 {[%clk 0:00:04]} 65. Bc6 {[%clk 0:00:03]}  Re2+ {[%clk 0:00:04]} 66. Kg1 {[%clk 0:00:04]}  Kg3 {[%clk 0:00:05]} 0-1


[Site "https://www.chess.com"]

[Event "Titled Tuesday Blitz August 3 2021"]
[White "Shimelkov, Vasiliy"]
[Black "Bortnyk, Olexandr"]
[WhiteFideId "13701630"]
[BlackFideId "14120828"]
[WhiteElo "2073"]
[BlackElo "2723"]
[Result "0-1"]
[Round "03"]
[TimeControl "180+1"]
[Date "2021.08.03"]
[WhiteClock "0:00:14"]
[BlackClock "0:00:56"]

1. d4 {[%clk 0:03:00]}  f5 {[%clk 0:02:57]} 2. c4 {[%clk 0:02:59]}  Nf6 {[%clk 0:02:57]} 3. g3 {[%clk 0:02:59]}  d6 {[%clk 0:02:57]} 4. Nf3 {[%clk 0:02:55]}  g6 {[%clk 0:02:54]} 5. Bg2 {[%clk 0:02:53]}  Bg7 {[%clk 0:02:54]} 6. O-O {[%clk 0:02:51]}  O-O {[%clk 0:02:55]} 7. b3 {[%clk 0:02:50]}  Na6 {[%clk 0:02:52]} 8. Bb2 {[%clk 0:02:49]}  c6 {[%clk 0:02:48]} 9. Nbd2 {[%clk 0:02:37]}  Ne4 {[%clk 0:02:23]} 10. e3 {[%clk 0:02:25]}  Nac5 {[%clk 0:01:56]} 11. Qc2 {[%clk 0:02:14]}  Nxd2 {[%clk 0:01:56]} 12. Nxd2 {[%clk 0:02:14]}  Ne6 {[%clk 0:01:57]} 13. d5 {[%clk 0:02:08]}  cxd5 {[%clk 0:01:56]} 14. Bxg7 {[%clk 0:02:05]}  Nxg7 {[%clk 0:01:55]} 15. cxd5 {[%clk 0:02:04]}  Bd7 {[%clk 0:01:55]} 16. a4 {[%clk 0:01:51]}  Rc8 {[%clk 0:01:55]} 17. Qd3 {[%clk 0:01:50]}  Qa5 {[%clk 0:01:53]} 18. e4 {[%clk 0:01:38]}  Qc3 {[%clk 0:01:38]} 19. Qe2 {[%clk 0:01:14]}  f4 {[%clk 0:01:37]} 20. gxf4 {[%clk 0:00:45]}  Nh5 {[%clk 0:01:13]} 21. e5 {[%clk 0:00:33]}  Nxf4 {[%clk 0:01:11]} 22. Qe3 {[%clk 0:00:31]}  Qxe3 {[%clk 0:01:00]} 23. fxe3 {[%clk 0:00:30]}  Nxg2 {[%clk 0:01:01]} 24. Kxg2 {[%clk 0:00:27]}  Rc2 {[%clk 0:00:57]} 25. Rxf8+ {[%clk 0:00:24]}  Kxf8 {[%clk 0:00:58]} 26. Rf1+ {[%clk 0:00:24]}  Ke8 {[%clk 0:00:58]} 27. Rf2 {[%clk 0:00:22]}  dxe5 {[%clk 0:00:59]} 28. Nc4 {[%clk 0:00:20]}  Rc3 {[%clk 0:00:58]} 29. Nxe5 {[%clk 0:00:18]}  Rxe3 {[%clk 0:00:58]} 30. Nxd7 {[%clk 0:00:17]}  Kxd7 {[%clk 0:00:59]} 31. b4 {[%clk 0:00:17]}  Re4 {[%clk 0:00:57]} 32. Rf7 {[%clk 0:00:16]}  Rxb4 {[%clk 0:00:57]} 33. Rxh7 {[%clk 0:00:16]}  Rxa4 {[%clk 0:00:58]} 34. Rg7 {[%clk 0:00:16]}  Rg4+ {[%clk 0:00:58]} 35. Kf3 {[%clk 0:00:16]}  Rg5 {[%clk 0:00:58]} 36. h4 {[%clk 0:00:16]}  Rf5+ {[%clk 0:00:54]} 37. Ke4 {[%clk 0:00:16]}  Rf6 {[%clk 0:00:55]} 38. Ke5 {[%clk 0:00:16]}  Rf5+ {[%clk 0:00:55]} 39. Ke4 {[%clk 0:00:16]}  Rh5 {[%clk 0:00:56]} 40. Rxg6 {[%clk 0:00:14]}  Rxh4+ {[%clk 0:00:56]} 0-1


[Site "https://www.chess.com"]

[Event "Titled Tuesday Blitz August 3 2021"]
[White "Skatchkov, Pavel"]
[Black "Degenbaev, Aziz"]
[WhiteFideId "4121848"]
[BlackFideId "13802640"]
[WhiteElo "2476"]
[BlackElo "1906"]
[Result "1-0"]
[Round "03"]
[TimeControl "180+1"]
[Date "2021.08.03"]
[WhiteClock "0:00:31"]
[BlackClock "0:00:01"]

1. d4 {[%clk 0:03:00]}  f5 {[%clk 0:02:59]} 2. c4 {[%clk 0:02:59]}  Nf6 {[%clk 0:02:59]} 3. Nc3 {[%clk 0:03:00]}  g6 {[%clk 0:02:59]} 4. g3 {[%clk 0:02:56]}  Bg7 {[%clk 0:02:59]} 5. Bg2 {[%clk 0:02:56]}  O-O {[%clk 0:03:00]} 6. Nf3 {[%clk 0:02:57]}  d6 {[%clk 0:03:00]} 7. O-O {[%clk 0:02:57]}  Qe8 {[%clk 0:03:01]} 8. b3 {[%clk 0:02:54]}  e5 {[%clk 0:03:01]} 9. dxe5 {[%clk 0:02:55]}  dxe5 {[%clk 0:03:01]} 10. Bb2 {[%clk 0:02:56]}  c6 {[%clk 0:03:00]} 11. Qc2 {[%clk 0:02:44]}  h6 {[%clk 0:02:58]} 12. Rad1 {[%clk 0:02:43]}  g5 {[%clk 0:02:58]} 13. Na4 {[%clk 0:02:40]}  Nbd7 {[%clk 0:02:49]} 14. Qxf5 {[%clk 0:02:37]}  e4 {[%clk 0:02:42]} 15. Ne1 {[%clk 0:02:10]}  Qh5 {[%clk 0:02:05]} 16. Qe6+ {[%clk 0:01:55]}  Kh8 {[%clk 0:02:02]} 17. g4 {[%clk 0:01:50]}  Nxg4 {[%clk 0:01:31]} 18. Bxg7+ {[%clk 0:01:51]}  Kxg7 {[%clk 0:01:32]} 19. Rxd7+ {[%clk 0:01:52]}  Bxd7 {[%clk 0:01:32]} 20. Qxd7+ {[%clk 0:01:53]}  Rf7 {[%clk 0:01:33]} 21. Qd4+ {[%clk 0:01:54]}  Kg8 {[%clk 0:01:34]} 22. h3 {[%clk 0:01:54]}  Nf6 {[%clk 0:01:31]} 23. Nc3 {[%clk 0:01:53]}  Re8 {[%clk 0:01:28]} 24. f3 {[%clk 0:01:20]}  exf3 {[%clk 0:01:17]} 25. Rxf3 {[%clk 0:01:19]}  Nd7 {[%clk 0:01:03]} 26. Nd3 {[%clk 0:01:11]}  Rxf3 {[%clk 0:00:57]} 27. exf3 {[%clk 0:01:08]}  Qf7 {[%clk 0:00:48]} 28. Ne4 {[%clk 0:01:07]}  Rf8 {[%clk 0:00:45]} 29. Qxa7 {[%clk 0:01:00]}  Nf6 {[%clk 0:00:33]} 30. Qd4 {[%clk 0:00:48]}  Nxe4 {[%clk 0:00:25]} 31. fxe4 {[%clk 0:00:49]}  Qh5 {[%clk 0:00:23]} 32. Ne5 {[%clk 0:00:47]}  Qe8 {[%clk 0:00:08]} 33. Ng4 {[%clk 0:00:45]}  Qg6 {[%clk 0:00:07]} 34. e5 {[%clk 0:00:44]}  Qb1+ {[%clk 0:00:04]} 35. Kh2 {[%clk 0:00:44]}  Qg6 {[%clk 0:00:02]} 36. Be4 {[%clk 0:00:43]}  Qe6 {[%clk 0:00:02]} 37. Qd6 {[%clk 0:00:37]}  Qxd6 {[%clk 0:00:01]} 38. exd6 {[%clk 0:00:38]}  Kg7 {[%clk 0:00:02]} 39. d7 {[%clk 0:00:37]}  Rd8 {[%clk 0:00:02]} 40. Bf5 {[%clk 0:00:32]}  h5 {[%clk 0:00:02]} 41. Ne3 {[%clk 0:00:32]}  Kf6 {[%clk 0:00:02]} 42. c5 {[%clk 0:00:32]}  Ke7 {[%clk 0:00:01]} 43. Kg3 {[%clk 0:00:31]}  Ra8 {[%clk 0:00:01]} 44. a4 {[%clk 0:00:31]} 1-0


[Site "https://www.chess.com"]

[Event "Titled Tuesday Blitz August 3 2021"]
[White "Spata, German"]
[Black "Zia, Tahsin Tajwar"]
[WhiteFideId "113026"]
[BlackFideId "10211888"]
[WhiteElo "2238"]
[BlackElo "1800"]
[Result "0-1"]
[Round "03"]
[TimeControl "180+1"]
[Date "2021.08.03"]
[WhiteClock "0:00:02"]
[BlackClock "0:00:50"]

1. e4 {[%clk 0:03:00]}  c6 {[%clk 0:03:00]} 2. d4 {[%clk 0:02:54]}  d5 {[%clk 0:03:00]} 3. Nd2 {[%clk 0:02:50]}  dxe4 {[%clk 0:02:54]} 4. Nxe4 {[%clk 0:02:51]}  Nf6 {[%clk 0:02:55]} 5. Nxf6+ {[%clk 0:02:47]}  exf6 {[%clk 0:02:56]} 6. c3 {[%clk 0:02:47]}  Bd6 {[%clk 0:02:52]} 7. Bd3 {[%clk 0:02:47]}  O-O {[%clk 0:02:49]} 8. Ne2 {[%clk 0:02:47]}  Re8 {[%clk 0:02:46]} 9. Qc2 {[%clk 0:02:47]}  h5 {[%clk 0:02:44]} 10. O-O {[%clk 0:02:43]}  h4 {[%clk 0:02:43]} 11. h3 {[%clk 0:02:12]}  Nd7 {[%clk 0:02:39]} 12. Bd2 {[%clk 0:01:59]}  Nf8 {[%clk 0:02:34]} 13. c4 {[%clk 0:01:58]}  Bc7 {[%clk 0:02:23]} 14. Rad1 {[%clk 0:01:55]}  Bf5 {[%clk 0:02:15]} 15. Bxf5 {[%clk 0:01:37]}  Rxe2 {[%clk 0:02:14]} 16. Qd3 {[%clk 0:01:19]}  Qd6 {[%clk 0:02:03]} 17. f4 {[%clk 0:01:09]}  Rae8 {[%clk 0:02:00]} 18. Bg4 {[%clk 0:01:03]}  R2e4 {[%clk 0:01:52]} 19. Bc1 {[%clk 0:00:40]}  Rxd4 {[%clk 0:01:35]} 20. Qxd4 {[%clk 0:00:40]}  Qxd4+ {[%clk 0:01:36]} 21. Rxd4 {[%clk 0:00:39]}  Bb6 {[%clk 0:01:37]} 22. Rd1 {[%clk 0:00:16]}  Bxd4+ {[%clk 0:01:35]} 23. Kf1 {[%clk 0:00:10]}  c5 {[%clk 0:01:33]} 24. Bf3 {[%clk 0:00:09]}  b6 {[%clk 0:01:33]} 25. b3 {[%clk 0:00:09]}  Ng6 {[%clk 0:01:28]} 26. Bd2 {[%clk 0:00:09]}  Rd8 {[%clk 0:01:25]} 27. Be1 {[%clk 0:00:07]}  f5 {[%clk 0:01:24]} 28. Bh5 {[%clk 0:00:06]}  Bf6 {[%clk 0:01:23]} 29. Rxd8+ {[%clk 0:00:05]}  Bxd8 {[%clk 0:01:24]} 30. Bxg6 {[%clk 0:00:03]}  fxg6 {[%clk 0:01:25]} 31. Ke2 {[%clk 0:00:03]}  Kf7 {[%clk 0:01:25]} 32. Kf3 {[%clk 0:00:02]}  Ke6 {[%clk 0:01:24]} 33. Bd2 {[%clk 0:00:03]}  Bf6 {[%clk 0:01:24]} 34. Be3 {[%clk 0:00:03]}  Bd4 {[%clk 0:01:23]} 35. Bd2 {[%clk 0:00:03]}  Kf6 {[%clk 0:01:21]} 36. Be1 {[%clk 0:00:03]}  g5 {[%clk 0:01:22]} 37. Bd2 {[%clk 0:00:03]}  gxf4 {[%clk 0:01:18]} 38. Bxf4 {[%clk 0:00:04]}  g5 {[%clk 0:01:16]} 39. Bb8 {[%clk 0:00:04]}  a6 {[%clk 0:01:16]} 40. Ba7 {[%clk 0:00:04]}  b5 {[%clk 0:01:17]} 41. cxb5 {[%clk 0:00:04]}  axb5 {[%clk 0:01:17]} 42. a4 {[%clk 0:00:05]}  bxa4 {[%clk 0:01:14]} 43. bxa4 {[%clk 0:00:06]}  Ke5 {[%clk 0:01:10]} 44. a5 {[%clk 0:00:06]}  Kd5 {[%clk 0:01:10]} 45. a6 {[%clk 0:00:05]}  Kc6 {[%clk 0:01:05]} 46. g3 {[%clk 0:00:03]}  hxg3 {[%clk 0:00:57]} 47. Kxg3 {[%clk 0:00:04]}  Kb5 {[%clk 0:00:57]} 48. Bb8 {[%clk 0:00:03]}  Kxa6 {[%clk 0:00:57]} 49. Kf3 {[%clk 0:00:04]}  Kb5 {[%clk 0:00:56]} 50. Bd6 {[%clk 0:00:04]}  Bf6 {[%clk 0:00:56]} 51. Bf8 {[%clk 0:00:03]}  Kc4 {[%clk 0:00:56]} 52. Ke2 {[%clk 0:00:03]}  Kd4 {[%clk 0:00:55]} 53. Bd6 {[%clk 0:00:03]}  c4 {[%clk 0:00:56]} 54. Ba3 {[%clk 0:00:02]}  c3 {[%clk 0:00:51]} 55. Kd1 {[%clk 0:00:02]}  Kd3 {[%clk 0:00:50]} 0-1


[Site "https://www.chess.com"]